Cogmind - Beta 10 X2 --- EXPLORER MODE // 2020.07.18 @ 21:59:34 // Experiment/BattleRoyale Player: Minty Result: Destroyed by Hotsignal-3 with Nova Cannon Performance ------------- Evolutions (0) 0 Regions Visited (0) 0 Robots Destroyed (0) 0 Value Destroyed (0) 0 Prototype IDs (3) 60 Alien Tech Used (0) 0 Bonus (0) 0 TOTAL SCORE: 60 Bonus ------- None Cogmind --------- Core Integrity 0/250 Matter 300/300 Energy 427/435 System Corruption 0% Temperature Cool (380) Movement Treading (170) Location -5/Wartown Parts ------- > --- POWER (2) -------- Nuclear Core Fusion Reactor > --- PROPULSION (4) --- Armored Treads Armored Medium Treads > --- UTILITY (6) ------ (None) > --- WEAPON (3) ------- Spread Laser Force Lance > --- INVENTORY (4) ---- (None) Peak State ------------ > --- POWER ------------ Nuclear Core Fusion Reactor > --- PROPULSION ------- Armored Treads Armored Medium Treads Enhanced Biometal Leg > --- UTILITY ---------- Cooling System Inertial Stasis Machine Improved Particle Charger Heavy Armor Plating Medium Reactive Plating > --- WEAPON ----------- Spread Laser High-powered Shotgun Force Lance > --- INVENTORY -------- (None) [Rating: 65] Favorites ----------- Power Nuclear Core Power Core Nuclear Core Reactor Fusion Reactor Propulsion Armored Treads Treads Armored Treads Leg Enhanced Biometal Leg Utility Inertial Stasis Machine Device Inertial Stasis Machine Protection Heavy Armor Plating Weapon Spread Laser Energy Gun Spread Laser Ballistic Gun High-powered Shotgun Piercing Weapon Force Lance Build | -5 ------- Run | Tow Slots Evolved . | . Power . | . Propulsion . | . Utility . | . Weapon . | . Parts Attached . | . Power . | . Engine . | . Core . | . Reactor . | . Propulsion . | . Treads . | . Leg . | . Wheel . | . Hover . | . Flight . | . Utility . | . Device . | . Storage . | . Processor . | . Hackware . | . Protection . | . Artifact . | . Weapon . | . Energy Gun . | . Energy Cannon . | . Ballistic Gun . | . Ballistic Cannon . | . Launcher . | . Special Weapon . | . Impact Weapon . | . Slashing Weapon . | . Piercing Weapon . | . Special Melee Weapon . | . Unidentified Prototypes . | . Parts Lost 2 | 2 Power . | . Propulsion . | . Utility 1 | 1 Weapon 1 | 1 Highest Loss Streak 1 | 1 Average Slot Usage (%) 68 | 68 Core 6 | 6 Reactor 6 | 6 Treads 13 | 13 Device 16 | 16 Protection 11 | 11 Energy Gun 6 | 6 Piercing Weapon 6 | 6 Naked Turns . | . Heaviest Build 72 | 72 Greatest Support 63 | 63 Greatest Overweight (x) 1 | 1 Average Overweight (x) 1 | 1 Largest Inventory Capacity 4 | 4 Average Capacity 4 | 4 Most Carried . | . Average Carried . | . Final Capacity 4 | 4 Final Carried . | . Class Distribution -------------------- 100% | Hacker-Mutant Dominant Class ---------------- Hacker-Mutant | -5/Wartown Resources | -5 ----------- Run | Tow Matter Collected . | . Remotely . | . Salvage Created . | . Parts . | . Haulers Intercepted . | . Recyclers Shooed . | . Parts Field Recycled . | . Retrieved Matter . | . Parts Self-Destructed . | . Prevented . | . Kills | -5 ------- Run | Tow Combat Hostiles Destroyed . | . Classes Destroyed . | . Best Kill Streak . | . Combat Bots Only . | . Max Kills in Single Turn . | . Gunslinging . | . Exploded . | . Melee . | . Uniques/NPCs Destroyed . | . Combat | -5 -------- Run | Tow Damage Taken 529 | 529 Core 250 | 250 Absorbed by Shields . | . Redirected to Core 3083 | 3083 Core Remaining (%) . | . Volleys Fired 10 | 10 Largest 2 | 2 Hottest 90 | 90 Shots Fired 11 | 11 Gun 11 | 11 Cannon . | . Launcher . | . Special . | . Kinetic 1 | 1 Thermal 10 | 10 Explosive . | . Electromagnetic . | . Robot Hit Streak 26 | 26 Robot Miss Streak 2 | 2 Penetration Max . | . Secondary Targets . | . Shots Hit Robots 16 | 16 Core Hits 9 | 9 Critical Hits 3 | 3 Critical Kills . | . Critical Parts Destroyed 2 | 2 Melee Attacks 6 | 6 Impact . | . Slashing . | . Piercing 6 | 6 Sneak Attacks . | . Combat Hostiles . | . Follow-up Attacks . | . Damage Inflicted 442 | 442 Guns 168 | 168 Cannons . | . Explosions . | . Melee 274 | 274 Ramming . | . Kinetic . | . Thermal 168 | 168 Explosive . | . Electromagnetic . | . Impact . | . Slashing . | . Piercing 274 | 274 Highest Corruption . | . Average Corruption . | . Corruption Purged . | . Overload Shots . | . Overflow Damage . | . Projectiles . | . Explosions . | . Melee . | . Knockbacks . | . Impact . | . Kinetic . | . Secondary . | . Self-Inflicted Damage . | . Shots . | . Rammed . | . Targets Rammed . | . Kicked . | . Crushed . | . Highest Temperature 371 | 371 Average Temperature 133 | 133 Received Heat Transfer 90 | 90 Siege Activations . | . Robots Corrupted . | . Combat Hostiles . | . Parts Fried . | . Impact Corruptions . | . Robots Melted . | . Combat Hostiles . | . Parts Melted . | . Heat Transferred 43 | 43 Parts Sabotaged . | . Parts Stolen . | . Parts Stripped . | . Power Chain Reactions . | . Missiles Intercepted . | . Alert | -5 ------- Run | Tow Peak Influence . | . Average Influence . | . Maximum Alert Level . | . Low Security (%) . | . Level 1 . | . Level 2 . | . Level 3 . | . Level 4 . | . Level 5 . | . High Security . | . Max Security . | . Squads Dispatched . | . Investigation . | . Extermination . | . Reinforcement . | . Assault . | . Garrison . | . Intercept . | . Construction Impeded . | . Haulers Reinforced . | . Stealth | -5 --------- Run | Tow Distress Signals . | . Communications Jammed . | . Distress Signals . | . Times Spotted 1 | 1 Peak Tracking Total 1 | 1 Tactical Retreats . | . Traps | -5 ------- Run | Tow Traps Triggered . | . Indirectly . | . Trap Hack Attempts . | . Triggered . | . Disarmed . | . Reprogrammed . | . Reused . | . Traps Extracted . | . Installed . | . Triggered . | . Machines | -5 ---------- Run | Tow Machines Disabled . | . Max in Single Turn . | . Machines Sabotaged . | . Garrisons Compromised . | . Overloaded Fab Kills . | . Fab Network Shutdowns . | . Hacking | -5 --------- Run | Tow Machines Accessed . | . Terminals . | . Fabricators . | . Repair Stations . | . Recycling Units . | . Scanalyzers . | . Garrison Access . | . Total Hacks . | . Successful . | . Failed . | . Catastrophic . | . Database Lockouts . | . Manual . | . Terminals . | . Fabricators . | . Repair Stations . | . Recycling Units . | . Scanalyzers . | . Garrison Access . | . Terminal Hacks . | . Fabricator Hacks . | . Repair Station Hacks . | . Recycling Unit Hacks . | . Scanalyzer . | . Garrison Access Hacks . | . Unauthorized Hacks . | . Terminals . | . Fabricators . | . Repair Stations . | . Recycling Units . | . Scanalyzers . | . Garrison Access . | . Data Cores Recovered . | . Used . | . Hacking Detections . | . Full Trace Events . | . Feedback Events . | . Feedback Blocked . | . Robot Schematics Acquired . | . Robots Built . | . Matter . | . Time . | . Total Robot Build Rating . | . Part Schematics Acquired . | . Parts Built . | . Matter . | . Time . | . Total Part Build Rating . | . Parts Repaired . | . Time . | . Parts Recycled . | . Recycled Matter . | . Retrieved Matter . | . Retrieved Components . | . Parts Scanalyzed . | . Part Schematics Acquired . | . Parts Damaged . | . Bothacking | -5 ------------ Run | Tow Used RIF Installer . | . Robots Hacked . | . Non-combat . | . Combat . | . Robot Hacks Applied . | . Relay Couplers Released . | . Robots Rewired . | . Allies Hacked . | . Hacks Repelled . | . Allies | -5 -------- Run | Tow Total Allies . | . Largest Group . | . Highest-Rated Group . | . Highest-Rated Ally . | . Total Orders . | . Ally Attacks . | . Total Damage . | . Kills . | . Allies Corrupted . | . Allies Melted . | . Intel | -5 ------- Run | Tow Robot Analysis Total . | . Derelict Logs Recovered . | . Drone Launches . | . Drone Recoveries . | . Exploration | -5 ------------- Run | Tow Turns Passed 74 | 74 Spaces Moved 16 | 16 Core . | . Treads 16 | 16 Legs . | . Wheels . | . Hover . | . Flight . | . Fastest Speed 190 | 190 Average Speed 190 | 190 Slowest Speed 190 | 190 Overloaded Moves . | . Propulsion Burnouts . | . Robots Hopped . | . Cave-ins Triggered . | . Exploration Rate (%) 1 | 1 Regions Visited 1 Branch Regions 1 Pre-discovered Areas . | . Known Exits Taken . | . Unknown Exits Taken . | . Scrap Searched . | . Spaces Dug . | . Terrain Destroyed . | . Melee . | . Projectile . | . AOE . | . Actions | -5 --------- Run | Tow Total 42 | 42 Wait 4 | 4 Move 16 | 16 Hop . | . Pick Up . | . Fast Attach . | . Attach . | . Detach . | . Swap . | . Drop 6 | 6 Fire 10 | 10 Melee 6 | 6 Ram . | . Kick . | . Crush . | . Escape Stasis . | . Rewire . | . Trap . | . Miscellaneous . | . Route ------- -5/Wartown History --------- Turn | Location | Event 67 | -5/Wartown | Core integrity fell below 50% 73 | -5/Wartown | Core integrity fell below 20% 75 | -5/Wartown | Destroyed by Hotsignal-3 with Nova Cannon Last Messages --------------- Dropped Mak. Hover Unit. 00002_ Dropped Enh. Biometal Leg. 00017_ Critical hit. 00017_ Hpw. Shotgun destroyed. 00031_ Slug penetrates Wall. 00052_ Critical hit. 00055_ Penetrated by Slug. 00057_ Hotsignal-3 suffers critical hit. 00057_ Destroyed Lgt. Cannon. 00058_ Hotsignal-3 attaches EM Pulse Gun. 00059_ Critical hit. 00059_ Cooling System destroyed. 00059_ Door malfunctions. 00062_ Dropped Hvy. Armor Plating. 00062_ Dropped Med. Reactive Plating. 00062_ Penetrated by Slug. 00063_ Dropped Imp. Particle Charger. 00063_ Dropped Inertial Stasis Machine. 00075_ Hotsignal-3 suffers critical hit. 00075_ Destroyed Phase Shifter. Map ----- +----------------------------------------------------+ | ?????????????????????????????????????????????????? | | ?????????????????????????????????????????????????? | | ?????????????????????????????????????????????????? | | ?????????????????????????????????????????????????? | | ?????????????????????????????????????????????????? | | ?????????????????????????????????????????????????? | | ?????????????????????????????????????????????????? | | ?????????????????????????????????????????????????? | | ?????????????????????????????????????????????????? | | ?????????????????????????????????????????????????? | | ?????????????????????????????????????????????????? | | ?????????????????????????????????????????????????? | | ?????????????????????????????????????????????????? | | ?????????????????????????????????????????????????? | | ?????????????????????????????????????????????????? | | ?????????????????????????????????????????????????? | | ?????????????????????????????????????????????????? | | ?????????????????????????????????????????????????? | | ??????????????????????###?###########????????????? | | ????????????????????###;### #????????????? | | ????????????????????# ## #????????????? | | ????????????????????# ## = #????????????? | | ????????????????????# ## = #?? ????? | | ????????????????????+ ######+##### ??? | | ????????????????????# / ??? | | ????????????????????# @@! =??? | | ????????????????????+ ! ;########## ??? | | ????????????????????# ; # #???????? | | ????????????????????###;;; ; #???????? | | ????????????? / #???????? | | ???????????????????+####; # +???????? | | ??????????????????????? # #?#########???????? | | ??????????????????????? # ????????????????? | | ??????????????????????? # ???????????????? | | ??????????????????????" # ??????????????? | | ?????????????????????? + ?????????????? | | ??????????????????????" # ????????????? | | ??????????????????????" # ??????????? | | ??????????????????????"?# ?????????? | | ????????????????????? ?# ########## ?????????? | | ????????????????????????# #????????? ?????????? | | ???????????????????????? ??????????????????????? | | ???????????????????????? ??????????????????????? | | ???????????????????????? ???????????????????????? | | ?????????????????????????????????????????????????? | | ?????????????????????????????????????????????????? | | ?????????????????????????????????????????????????? | | ?????????????????????????????????????????????????? | | ?????????????????????????????????????????????????? | | ?????????????????????????????????????????????????? | +----------------------------------------------------+ Best States ------------- Heat Dissipation 47 Energy Generation 32 Energy Capacity 435 Matter Stores 300 Matter Capacity 300 Sight Range 16 Terrain Scan Density 10 Additional Mass Support 16 Armor Coverage 825 Resistance: KI 65 Resistance: TH 35 Resistance: EX 35 Resistance: EM 35 Resistance: I 35 Resistance: S 35 Resistance: P 35 Evasion (%) 40 Recoil Reduction 2 Particle Charging 20 Offensive Hacking 20 Item Schematics ----------------- None Robot Schematics ------------------ None Fabricated ------------ Nothing Alien Tech Used ----------------- None Achievements -------------- None Challenges ------------ None Game ------ Seed TargetAntimatterKit Manual? 0 Play Time 00:03:53 Cumulative 211.6 hours Start 2020.07.18 @ 21:57:29 End 2020.07.18 @ 21:59:34 Sessions 1 Manual Loads 0 Difficulty Explorer Special Mode Experiment/BattleRoyale Game No. 122 Rogue 0 Adventurer 44 Explorer 78 Win Type - Total 4 Types 3/0/1/0/0/0/0 Lore% 53 Gallery% 79 Achievement% 58 Wizard Run 0 Options --------- ASCII 0 Keyboard 0 Movement Mouse Keybinds 0 Fullscreen 1 Font 18/TerminusBold Map View 76x50 Tactical HUD 1 Map Filters NONE Filters SATURATION(100) Steam 1 RUN: ec3b82ea-2aea-4b3b-9a75-4da797420c42